Workbook

Sheet total
B2: Calculate Percentage of a Total
B4: Total Question | C4: Correct Answer | D4: Percentage
B5: 50 | C5: 35 | D5: =C5/B5 -> 0.7

Sheet marks
B2: Calculate Percentage of Marks
B4: Name | C4: Subject | D4: Summer-22 | E4: Fall-22 | F4: Increase in Marks
B5: Aaron | C5: Math | D5: 35 | E5: 40 | F5: =(E5-D5)/D5 -> 0.1428571429
B6: Jason | C6: Biology | D6: 40 | E6: 55 | F6: =(E6-D6)/D6 -> 0.375
B7: Max | C7: Math | D7: 45 | E7: 64 | F7: 0.4222222222
B8: Stacy | C8: Physics | D8: 44 | E8: 59 | F8: 0.3409090909
B9: Elizabeth | C9: Chemistry | D9: 32 | E9: 49 | F9: 0.53125
B10: Robert | C10: Math | D10: 67 | E10: 78 | F10: 0.1641791045
B11: Chris | C11: Physics | D11: 72 | E11: 89 | F11: 0.2361111111

Sheet yearly sales
B2: Calculate Percentage Increase of Yearly Sales
B4: Year | C4: Sales (in Million) | D4: Increase in Yearly Sales
B5: 2016 | C5: 1.3
B6: 2017 | C6: 2 | D6: =(C6-C5)/C5 -> 0.5384615385
B7: 2018 | C7: 2.3 | D7: =(C7-C6)/C6 -> 0.15
B8: 2019 | C8: 2.7 | D8: 0.1739130435
B9: 2020 | C9: 3 | D9: 0.1111111111
B10: 2021 | C10: 3.6 | D10: 0.2
B11: 2022 | C11: 4 | D11: 0.1111111111

Sheet Increase by percent
B2: Increase by Particular Percent
B4: Product | C4: Original Value | D4: Increase By | E4: New Value
B5: TV | C5: 500 | D5: 0.05 | E5: =C5+(C5*D5) -> 525
B6: AC | C6: 700 | D6: 0.04 | E6: =C6+(C6*D6) -> 728
B7: Fridge | C7: 550 | D7: 0.1 | E7: 605
B8: Mobile | C8: 120 | D8: 0.12 | E8: 134.4
B9: Laptop | C9: 300 | D9: 0.09 | E9: 327
B10: Computer | C10: 350 | D10: 0.11 | E10: 388.5
B11: Headphone | C11: 50 | D11: 0.03 | E11: 51.5

Sheet Decrease
B2: Calculate Percentage Decrease
B4: Product | C4: October | D4: November | E4: Decrease
B5: TV | C5: 500 | D5: 450 | E5: =(C5-D5)/C5 -> 0.1
B6: AC | C6: 700 | D6: 660 | E6: =(C6-D6)/C6 -> 0.05714285714
B7: Fridge | C7: 550 | D7: 540 | E7: 0.01818181818
B8: Mobile | C8: 120 | D8: 113 | E8: 0.05833333333
B9: Laptop | C9: 300 | D9: 256 | E9: 0.1466666667
B10: Computer | C10: 350 | D10: 300 | E10: 0.1428571429
B11: Headphone | C11: 50 | D11: 40 | E11: 0.2

Sheet VBA
B2: Show Increase or Decrease
B4: Product | C4: October | D4: November | E4: Decrease
B5: TV | C5: 500 | D5: 450 | E5: 10% Decrease
B6: AC | C6: 700 | D6: 720 | E6: 3% Increase
B7: Fridge | C7: 550 | D7: 550 | E7: No change
B8: Mobile | C8: 120 | D8: 133 | E8: 11% Increase
B9: Laptop | C9: 300 | D9: 256 | E9: 15% Decrease
B10: Computer | C10: 350 | D10: 350 | E10: No change
B11: Headphone | C11: 50 | D11: 60 | E11: 20% Increase

Sheet proportion
B2: Percentage as a Proportion of a Number
B4: Amount | C4: Paid | D4: Payment Proportion | E4: Due Proportion
B5: 1000 | C5: 725 | D5: =C5/B5 -> 0.725 | E5: =100%-D5 -> 0.275

Sheet discount
B2: Calculate Dicount Percentage
B4: Amount | C4: Status | D4: Final Amount
B5: 500 | C5: VIP | D5: =IF(C5="VIP",(1-30%)*B5,IF(C5="REGULAR",(1-15%)*B5,B5)) -> 350
B6: 700 | C6: NEW | D6: =IF(C6="VIP",(1-30%)*B6,IF(C6="REGULAR",(1-15%)*B6,B6)) -> 700
B7: 550 | C7: REGULAR | D7: 467.5
B8: 120 | C8: VIP | D8: 84
B9: 300 | C9: REGULAR | D9: 255
B10: 350 | C10: NEW | D10: 350
B11: 50 | C11: VIP | D11: 35

Sheet actual price
B2: Find Actual Price
B4: Buying Price | C4: Percentage | D4: Actual Price
B5: 500 | C5: 0.75 | D5: =B5/C5 -> 666.6666667

Sheet Tax
B2: Calculate Flat Price
B4: Buying Price | C4: Tax | D4: Additional Amount
B5: 150000 | C5: 0.078 | D5: =B5*C5 -> 11700
